Cogmind - Beta 15 @@@ ROGUE MODE // 2025.08.02 @ 04:00:00 Player: Aon Result: Destroyed by S-10 Pest with Light Assault Rifle Performance ------------- Evolutions (2) 1000 Regions Visited (3) 600 Robots Destroyed (17) 85 Value Destroyed (450) 450 Prototype IDs (0) 0 Alien Tech Used (0) 0 Bonus (0) 0 TOTAL SCORE: 2135 Bonus ------- None Cogmind --------- Core Integrity 0/550 Matter 82/300 Energy 100/100 System Corruption 0% Temperature Cool (18) Movement Core (200) Ox3 Location -8/Materials Parts ------- > --- POWER (1) -------- (None) > --- PROPULSION (3) --- (None) > --- UTILITY (5) ------ Medium Storage Unit Power Shielding > --- WEAPON (2) ------- Mini Grenade Launcher > --- INVENTORY (10) --- (None) Peak State ------------ > --- POWER ------------ Light Nuclear Core > --- PROPULSION ------- Compact Wheel Armored Wheel > --- UTILITY ---------- Small Storage Unit Medium Storage Unit Sensor Array Power Shielding > --- WEAPON ----------- Mini Grenade Launcher > --- INVENTORY -------- (None) [Rating: 12] Favorites ----------- Power Ion Engine Engine Ion Engine Power Core Light Nuclear Core Propulsion Aluminum Leg Leg Aluminum Leg Wheel Compact Wheel Flight Unit Flight Unit Utility Small Storage Unit Device Sensor Array Storage Small Storage Unit Processor Signal Interpreter Protection Power Shielding Weapon Assault Rifle Energy Gun EM Pulse Gun Ballistic Gun Assault Rifle Launcher Grenade Launcher Build | -11 -10 -9 -8 ------- Run | Yrd Mat Mat Mat Slots Evolved 4 | . . 2 2 Power . | . . . . Propulsion 1 | . . . 1 Utility 3 | . . 2 1 Weapon . | . . . . Parts Attached 23 | 6 2 7 8 Power 3 | 1 1 . 1 Engine 2 | 1 1 . . Core 1 | . . . 1 Reactor . | . . . . Propulsion 8 | 2 . 2 4 Treads . | . . . . Leg 2 | 2 . . . Wheel 4 | . . 2 2 Hover . | . . . . Flight 2 | . . . 2 Utility 5 | 1 1 2 1 Device 1 | . . 1 . Storage 2 | 1 . . 1 Processor 1 | . 1 . . Hackware . | . . . . Protection 1 | . . 1 . Artifact . | . . . . Weapon 7 | 2 . 3 2 Energy Gun 2 | 1 . 1 . Energy Cannon . | . . . . Ballistic Gun 2 | 1 . 1 . Ballistic Cannon . | . . . . Launcher 3 | . . 1 2 Special Weapon . | . . . . Impact Weapon . | . . . . Slashing Weapon . | . . . . Piercing Weapon . | . . . . Special Melee Weapon . | . . . . Unidentified Prototypes . | . . . . Parts Lost 18 | . . 5 13 Power 2 | . . 1 1 Propulsion 8 | . . 2 6 Utility 3 | . . . 3 Weapon 5 | . . 2 3 Highest Loss Streak 7 | . . 5 7 To Critical Strikes . | . . . . Average Backups 2 | 1 3 2 1 Power . | . . . . Propulsion 1 | 1 2 1 . Utility . | . . . . Weapon . | . . . . Tool/Special . | . . . . Unused Backups 1 | . 1 . . Power . | . . . . Propulsion . | . . . . Utility 1 | . 1 . . Weapon . | . . . . Tool/Special . | . . . . Average Slot Usage (%) 81 | . 93 86 67 Engine 6 | . 14 6 . Leg 11 | . 28 10 . Wheel 8 | . . 7 17 Device 7 | . . 11 8 Storage 12 | . 14 11 12 Processor 8 | . 7 11 6 Protection 6 | . . 9 9 Energy Gun 6 | . 14 5 2 Ballistic Gun 8 | . 14 10 . Launcher 4 | . . 4 9 Peak Build Rating 12 | 6 7 9 12 Average Rating 7 | 4 6 7 9 On Entrance 5 | . 6 7 9 Naked Turns . | . . . . Heaviest Build 23 | 12 14 16 23 Greatest Support 38 | 20 20 26 38 Greatest Overweight (x) 4 | . . 4 3 Average Overweight (x) . | . . . . Largest Inventory Capacity 10 | 8 8 8 10 Average Capacity 8 | 6 8 8 9 Most Carried 6 | 3 6 3 3 Average Carried 2 | 1 3 2 1 Final Capacity 10 | 8 8 8 10 Final Carried 4 | 3 4 3 . Class Distribution -------------------- 100% | Mutant Dominant Class ---------------- Mutant | -10/Materials Mutant | -9/Materials Mutant | -8/Materials Resources | -11 -10 -9 -8 ----------- Run | Yrd Mat Mat Mat Matter Collected 313 | 242 . 60 11 Remotely . | . . . . Salvage Created 370 | . 57 172 141 Parts 25 | . 3 14 8 Haulers Intercepted . | . . . . Recyclers Shooed 1 | . . 1 . Parts Field Recycled . | . . . . Retrieved Matter . | . . . . Parts Self-Destructed . | . . . . Prevented . | . . . . Kills | -11 -10 -9 -8 ------- Run | Yrd Mat Mat Mat Combat Hostiles Destroyed 14 | . 1 6 7 Guns 5 | . 1 4 . AOE 9 | . . 2 7 Classes Destroyed 6 | . 1 4 1 Builder 2 | . . 1 1 Recycler 1 | . . . 1 Swarmer 7 | . . 3 4 Grunt 5 | . 1 1 3 Duelist 1 | . . 1 . Sentry 1 | . . 1 . Best Kill Streak 5 | . 1 4 5 Combat Bots Only 5 | . 1 3 5 Max Kills in Single Turn 2 | . 1 2 2 Gunslinging . | . . . . Exploded 2 | . . 1 2 Melee . | . . . . Uniques/NPCs Destroyed . | . . . . Combat | -11 -10 -9 -8 -------- Run | Yrd Mat Mat Mat Hostile Shots Fired 179 | . 6 56 117 Missed 54 | . 1 18 35 Hits 125 | . 5 38 82 Melee 8 | . . 8 . Projectile 117 | . 5 30 82 Critical Strikes 5 | . . . 5 Damage Taken 1947 | . 77 571 1299 Core 699 | . 17 127 555 Absorbed by Shields . | . . . . Redirected to Shielding 49 | . . 26 23 Core Remaining (%) 87 | 100 93 68 . Volleys Fired 32 | . 6 15 11 Largest 2 | . 2 2 2 Hottest 75 | . 60 60 75 Shots Fired 44 | . 12 20 12 Gun 30 | . 12 17 1 Cannon . | . . . . Launcher 14 | . . 3 11 Special . | . . . . Kinetic 21 | . 6 15 . Thermal . | . . . . Explosive 14 | . . 3 11 Electromagnetic 9 | . 6 2 1 Robot Hit Streak 11 | . 3 11 10 Robot Miss Streak 2 | . 1 2 1 Penetration Max . | . . . . Secondary Targets . | . . . . Shots Hit Robots 32 | . 7 14 11 Core Hits 33 | . 3 13 17 Critical Kills . | . . . . Critical Parts Destroyed . | . . . . Critical Strikes . | . . . . Melee Attacks . | . . . . Impact . | . . . . Slashing . | . . . . Piercing . | . . . . Sneak Attacks . | . . . . Combat Hostiles . | . . . . Follow-up Attacks . | . . . . Damage Inflicted 1463 | . 102 362 999 Guns 269 | . 102 153 14 Cannons . | . . . . Explosions 1194 | . . 209 985 Melee . | . . . . Ramming . | . . . . Kinetic 193 | . 50 143 . Thermal 80 | . . . 80 Explosive 1114 | . . 209 905 Electromagnetic 76 | . 52 10 14 Impact . | . . . . Slashing . | . . . . Piercing . | . . . . Highest Corruption . | . . . . Average Corruption . | . . . . Corruption Purged . | . . . . Corruption Blocked . | . . . . Overload Shots . | . . . . Overflow Damage 16 | . . 3 13 Projectiles . | . . . . Explosions 16 | . . 3 13 Melee . | . . . . Knockbacks . | . . . . Impact . | . . . . Kinetic . | . . . . Secondary . | . . . . Self-Inflicted Damage 164 | . . . 164 Shots 4 | . . . 4 Rammed . | . . . . Targets Rammed . | . . . . Kicked . | . . . . Crushed . | . . . . Highest Temperature 45 | . 45 12 27 Average Temperature 19 | . 27 6 11 Received Heat Transfer 522 | . 45 81 396 Siege Activations . | . . . . Martial Activations . | . . . . Shielding Activations . | . . . . Robots Disrupted . | . . . . Combat Hostiles . | . . . . Robots Corrupted . | . . . . Combat Hostiles . | . . . . Parts Fried . | . . . . Impact Corruptions . | . . . . Robots Melted . | . . . . Combat Hostiles . | . . . . Parts Melted . | . . . . Heat Transferred 150 | . . . 150 Parts Sabotaged . | . . . . Parts Stolen . | . . . . Parts Stripped . | . . . . Power Chain Reactions 1 | . . . 1 Alert | -11 -10 -9 -8 ------- Run | Yrd Mat Mat Mat Maximum Alert Level 1 | . . . 1 Low Security (%) 98 | 100 100 100 96 Level 1 1 | . . . 3 Level 2 . | . . . . Level 3 . | . . . . Level 4 . | . . . . Level 5 . | . . . . High Security . | . . . . Max Security . | . . . . Peak Influence 217 | . 45 113 217 Initial 40 | . . 5 40 Average 57 | . 12 47 128 Influence Increases 600 | . 45 218 337 Destroy 0b10 Robot/C 280 | . 20 120 140 Destroy 0b10 Robot/NC 15 | . . 5 10 Destroy Leader 50 | . 10 30 10 Disable Machine 75 | . . . 75 Destroy Structure 75 | . . 18 57 Lose Combat Pursuer 105 | . 15 45 45 Influence Decreases 433 | . 30 135 268 Entered New Map 68 | . . 10 58 Time Decay 180 | . 30 70 80 Lost Part 180 | . . 50 130 Purge Threat 5 | . . 5 . Squads Dispatched 1 | . . 1 . Investigation . | . . . . Extermination . | . . . . Reinforcement 1 | . . 1 . Assault . | . . . . Garrison . | . . . . Intercept . | . . . . Searches Triggered . | . . . . Construction Impeded 1 | . . 1 . Haulers Reinforced . | . . . . Active Scanning Responses . | . . . . Cargo Convoy Interrupts . | . . . . Stealth | -11 -10 -9 -8 --------- Run | Yrd Mat Mat Mat Distress Signals 6 | . 1 2 3 Communications Jammed . | . . . . Distress Signals . | . . . . Times Spotted 36 | . 3 11 22 Peak Tracking Total 10 | . 3 9 10 Tactical Retreats 6 | . 1 3 2 Traps | -11 -10 -9 -8 ------- Run | Yrd Mat Mat Mat Traps Triggered . | . . . . Indirectly . | . . . . Trap Hack Attempts . | . . . . Triggered . | . . . . Disarmed . | . . . . Reprogrammed . | . . . . Reused . | . . . . Traps Extracted . | . . . . Installed . | . . . . Triggered . | . . . . Machines | -11 -10 -9 -8 ---------- Run | Yrd Mat Mat Mat Machines Disabled 5 | . . . 5 Max in Single Turn 3 | . . . 3 Machines Repaired . | . . . . Machines Dismantled . | . . . . Machines Sabotaged . | . . . . Overloaded Fab Kills . | . . . . Hacking | -11 -10 -9 -8 --------- Run | Yrd Mat Mat Mat Machines Accessed 3 | . . 2 1 Terminals 3 | . . 2 1 Fabricators . | . . . . Repair Stations . | . . . . Recycling Units . | . . . . Scanalyzers . | . . . . Garrison Access . | . . . . Total Hacks 3 | . . 2 1 Successful 2 | . . 2 . Failed 1 | . . . 1 Catastrophic . | . . . . Database Lockouts . | . . . . Manual . | . . . . Terminals 3 | . . 2 1 Fabricators . | . . . . Repair Stations . | . . . . Recycling Units . | . . . . Scanalyzers . | . . . . Garrison Access . | . . . . Terminal Hacks 2 | . . 2 . Unreport Threat 1 | . . 1 . Zone Layout 1 | . . 1 . Fabricator Hacks . | . . . . Repair Station Hacks . | . . . . Recycling Unit Hacks . | . . . . Scanalyzer . | . . . . Garrison Access Hacks . | . . . . Unauthorized Hacks . | . . . . Terminals . | . . . . Fabricators . | . . . . Repair Stations . | . . . . Recycling Units . | . . . . Scanalyzers . | . . . . Garrison Access . | . . . . Data Cores Recovered . | . . . . Used . | . . . . Hacking Detections . | . . . . Full Trace Events . | . . . . Feedback Events . | . . . . Feedback Blocked . | . . . . Robot Schematics Acquired . | . . . . Robots Built . | . . . . Authchips . | . . . . Time . | . . . . Total Robot Build Rating . | . . . . Part Schematics Acquired . | . . . . Parts Built . | . . . . Authchips . | . . . . Time . | . . . . Total Part Build Rating . | . . . . Parts Repaired . | . . . . Time . | . . . . Parts Recycled . | . . . . Recycled Matter . | . . . . Retrieved Matter . | . . . . Retrieved Components . | . . . . Parts Scanalyzed . | . . . . Part Schematics Acquired . | . . . . Parts Damaged . | . . . . Bothacking | -11 -10 -9 -8 ------------ Run | Yrd Mat Mat Mat Used RIF Installer . | . . . . Robots Hacked . | . . . . Non-combat . | . . . . Combat . | . . . . Robot Hacks Applied . | . . . . Relay Couplers Released . | . . . . Fabnet Peak Effective % . | . . . . Robots Rewired . | . . . . Allies Hacked . | . . . . Hacks Repelled . | . . . . Allies | -11 -10 -9 -8 -------- Run | Yrd Mat Mat Mat Total Allies . | . . . . Largest Group . | . . . . Highest-Rated Group . | . . . . Highest-Rated Ally . | . . . . Total Orders . | . . . . Ally Attacks . | . . . . Total Damage . | . . . . Kills . | . . . . Allies Corrupted . | . . . . Allies Melted . | . . . . Intel | -11 -10 -9 -8 ------- Run | Yrd Mat Mat Mat Active Infowar (turns) 367 | . . 210 157 Sensors 367 | . . 210 157 Robot Analysis Total . | . . . . Derelict Logs Recovered . | . . . . Drone Launches . | . . . . Drone Recoveries . | . . . . Exploration | -11 -10 -9 -8 ------------- Run | Yrd Mat Mat Mat Turns Passed 580 | 62 142 210 166 Spaces Moved 433 | 46 98 153 136 Core 14 | 7 . 3 4 Treads . | . . . . Legs 206 | 39 98 69 . Wheels 213 | . . 81 132 Hover . | . . . . Flight . | . . . . Fastest Speed 50 | 50 120 80 90 Average Speed 107 | 109 120 107 97 Slowest Speed 250 | 120 120 250 200 Overloaded Moves . | . . . . Propulsion Burnouts . | . . . . Robots Hopped . | . . . . Potential Cave-ins . | . . . . Cave-ins Triggered . | . . . . Exploration Rate (%) 19 | 3 22 23 28 Regions Visited 3 Branch Regions . Pre-discovered Areas . | . . . . Known Exits Taken 2 | . 1 1 . Unknown Exits Taken 1 | 1 . . . Scrap Searched . | . . . . Spaces Dug . | . . . . Terrain Destroyed 83 | . . 16 67 Melee . | . . . . Projectile . | . . . . AOE 83 | . . 16 67 Terrain Rammed . | . . . . Walls Destroyed . | . . . . Machines Disabled . | . . . . Actions | -11 -10 -9 -8 --------- Run | Yrd Mat Mat Mat Total 498 | 54 110 177 157 Wait . | . . . . Move 430 | 45 97 152 136 Hop . | . . . . Pick Up 10 | 3 3 2 2 Fast Attach 14 | 6 1 4 3 Attach 8 | . . 3 5 Detach . | . . . . Swap 1 | . 1 . . Drop 3 | . 2 1 . Fire 32 | . 6 15 11 Melee . | . . . . Ram . | . . . . Kick . | . . . . Crush . | . . . . Escape Stasis . | . . . . Rewire . | . . . . Trap . | . . . . Miscellaneous . | . . . . Route ------- -11/Scrapyard -10/Materials -9/Materials (discovered 2 exits: *Mat / [*Sto]) -8/Materials History --------- Turn | Location | Event 3 | -11/Scrapyard | Discovered new exit (range 16) 63 | -11/Scrapyard | Entered Materials 189 | -10/Materials | Discovered new exit (range 12) 202 | -10/Materials | Identified exit to Materials 205 | -10/Materials | Entered another Materials area 205 | -9/Materials | Evolved 2 slots: Utility x2 249 | -9/Materials | Discovered new exit (range 16) 304 | -9/Materials | Build established: Mutant 350 | -9/Materials | Lost 5 parts (1p2n2w) 410 | -9/Materials | Discovered new exit (range 3) 411 | -9/Materials | Identified exit to Materials 415 | -9/Materials | Entered another Materials area 415 | -8/Materials | Evolved 2 slots: Propulsion x1, Utility x1 514 | -8/Materials | Lost 5 parts (2n3w) 571 | -8/Materials | Core integrity fell below 50% 579 | -8/Materials | Core integrity fell below 20% 581 | -8/Materials | Destroyed by S-10 Pest with Light Assault Rifle Last Messages --------------- Acquired Flight Unit. Arm. Wheel destroyed. R-06 Scavenger collects Terrain Scanner. Acquired 5 matter. Acquired Flight Unit. R-06 Scavenger collects Terrain Scan Processor. Sml. Storage Unit destroyed. Flight Unit destroyed. Destroyed Flight Unit. R-06 Scavenger destroyed. Purification Channel disabled. Electrolysis Chamber disabled. Sensor Array destroyed. Critical hit (Burn: +37). Lgt. Nuclear Core destroyed. Com. Wheel destroyed. Critical hit (Burn: +37). Flight Unit destroyed. W-25 Informer sends out distress signal. Critical hit (Burn: +37). Map ----- +----------------------------------------------------+ | ??????????????????????????????????????????# #/ | | ??????????????????????????????????????????# # | | ??????????????????????????????????????????# ## | | ??????????????????????????????????????????# # | | ??????????????????????????????????????????# # | | ??????????????????????????????????????????# #" | | ??????????????????????????????????????????# #" | | ??????????????????????????????????????????# #" | | ??????????????????????????????????????????? ? | | ???????????????????????? ? ????????????####+###" | | ???????????????????????? T ????????????# | | ???????????????????????# ????????????+ | | ???????????????????????# ????????????# | | ??????????????????????? #????????????####+#### | | ??????????????????????? #????????????# % # | | ?????????????????? ??? #????????????# "" # | | ?????????????????? """ #????????????# "Y # | | ??????????????????? """ ############## "" # | | ???????????????????# """ #! ! # # | | ???????????????????# # " """"" # """ # | | ???????????????????# r """"""""" # """"" # | | ???????????????????# """ # "" """ # """"" # | | ???????????????????# """ #=! ?# """"" # | | ??????????????????## """ gg ###### """ # | | ??????????????????+ sg% s g Yg/ # | | ??????????????????# @w ####### ###### | | ??????????????????# ###/#### #?????###????? | | ??????????????????# ???? ??# "" #????????????? | | ???????????????????????? ""??# """ #????????????? | | ??????????????????????? R"?# """ #????????????? | | ???????????????????????! """?# #????????????? | | ??????????????????????# Y # ] #????????????? | | ??????????????????????# ########????????????? | | ??????????????????????##### #????????????????????? | | ?????????????????????????????????????????????????? | | ?????????????????????????????????????????????????? | | ?????????????????????????????????????????????????? | | ?????????????????????????????????????????????????? | | ?????????????????????????????????????????????????? | | ?????????????????????????????????????????????????? | | ?????????????????????????????????????????????????? | | ?????????????????????????????????????????????????? | | ?????????????????????????????????????????????????? | | ?????????????????????????????????????????????????? | | ?????????????????????????????????????????????????? | | ?????????????????????????????????????????????????? | | ?????????????????????????????????????????????????? | | ?????????????????????????????????????????????????? | | ?????????????????????????????????????????????????? | | ?????????????????????????????????????????????????? | +----------------------------------------------------+ Best States ------------- Heat Dissipation 31 Energy Generation 14 Energy Capacity 250 Matter Stores 282 Matter Capacity 300 Sight Range 16 Robot Scan Range 14 Terrain Scan Density 10 Power Shielding 33 Evasion (%) 55 Item Schematics ----------------- None Robot Schematics ------------------ None Fabricated ------------ Nothing Repaired ---------- Nothing Alien Tech Used ----------------- None Achievements -------------- None Challenges ------------ None Game ------ Seed BarrageDefenseArmor Manual? 0 Play Time 00:13:26 Cumulative 7.2 hours Start 2025.07.31 @ 10:15:07 End 2025.08.02 @ 04:00:00 Sessions 3 Manual Loads 0 Difficulty Rogue Special Mode None Game No. 14 Rogue 12 Adventurer 0 Explorer 2 Win Type - Total 0 Types 0/0/0/0/0/0/0/0/0/0 Lore% 9 Gallery% 15 Achievement% 17 Wizard Run 0 Options --------- Layout 1 ASCII 0 Keyboard 0 Movement Numpad Keybinds 0 Fullscreen 1 Font 24/Smallcaps Map View 50x35 Zoom Use 0% Tactical HUD 0 Map Filters NONE Filters NONE Steam 1 RUN: 1fd82470-0451-445e-ba09-abff88e67134